bitfinex/quotes_ETHUSD_20260111
["timestamp","ask_amount","ask_price","bid_price","bid_amount"]
[1768169943718,0.05375828,3109.1,3108.9,4.03834971]
[1768169943919,0.05375828,3109.1,3108.8,3.46963707]
[1768169947341,0.00080424,3109.6,3108.8,7.50809881]
[1768169947635,0.00080424,3109.6,3108.9,0.8217865]
[1768169947931,0.93914936,3109.6,3108.9,0.8217865]
[1768169949204,0.93914936,3109.6,3109.1,0.002]
[1768169956204,0.93914936,3109.6,3109.2,0.253]
[1768169957421,0.94148668,3109.5,3109.2,0.253]
[1768169973156,0.94148668,3109.5,3109.3,0.253]
[1768169974985,0.94148668,3109.5,3109.3,1e-08]
[1768169979177,0.94148668,3109.5,3109.4,0.253]
[1768169979377,0.31616365,3109.4,3109.1,0.002]
[1768169980282,0.31616365,3109.4,3109.2,0.253]
[1768169982098,0.31616365,3109.4,3109.2,1.0747865]
[1768169982309,0.00083042,3109.7,3109.3,0.8217865]
[1768169982481,6.47,3110.0,3109.4,0.8217865]
[1768169982681,0.95764745,3110.2,3109.4,0.8217865]
[1768169984095,5.43303511,3109.7,3109.3,0.0008305]
[1768169984387,0.95845177,3109.6,3109.2,0.253]
[1768169984593,0.95764745,3109.5,3109.2,0.253]
[1768169984885,0.06387359,3109.2,3109.1,0.002]
[1768169985086,1.02152104,3109.2,3109.1,0.253]
[1768169985287,1.02152104,3109.2,3109.1,0.00017353]
[1768169989490,0.00510659,3109.2,3109.1,0.00017353]
[1768169992310,1e-08,3109.2,3109.1,0.00017353]
[1768169992510,0.00080432,3109.6,3109.1,0.00017353]
[1768169993270,0.00080432,3109.6,3109.1,0.82196003]
[1768169994824,0.00080432,3109.6,3109.2,7.25430932]
[1768169995475,0.00080432,3109.6,3109.2,4.03804791]
[1768169995676,0.001,3109.3,3109.2,4.03804791]
[1768169995906,0.00080432,3109.6,3109.2,4.03804791]
[1768169996409,0.00080432,3109.6,3109.2,3.21626141]
[1768169997915,0.00080432,3109.6,3109.1,6.43287578]
[1768169999320,0.00080432,3109.6,3109.1,7.25466228]
[1768169999925,6.47,3110.1,3109.5,0.8217865]
[1768170000124,0.95764745,3110.3,3109.6,0.253]
[1768170002095,0.95764745,3110.3,3109.7,3.21574428]
[1768170002608,0.95764745,3110.3,3109.6,3.46880411]
[1768170002811,0.0008036,3110.6,3109.7,0.8217865]
[1768170003988,0.0008036,3110.6,3109.9,0.83463605]
[1768170006229,0.0008036,3110.6,3110.1,0.8217865]
[1768170006431,0.0008036,3110.6,3110.2,0.253]
[1768170007841,0.001,3110.3,3110.2,0.253]
[1768170008143,0.0008036,3110.6,3110.2,0.253]
[1768170008915,0.0008036,3110.6,3110.3,3.21512394]
[1768170011427,0.0008036,3110.6,3110.3,6.43024788]
[1768170022459,0.0008036,3110.6,3110.3,7.25203438]
[1768170022652,0.90112331,3110.7,3110.4,0.253]
[1768170024154,0.001,3110.8,3110.4,0.253]
[1768170024322,0.90112331,3110.7,3110.4,0.253]
[1768170026124,0.41167587,3110.6,3110.5,0.253]
[1768170026334,0.90112331,3110.5,3110.2,0.00080368]
[1768170026529,0.90112331,3110.5,3110.3,0.253]
[1768170031562,0.001,3110.8,3110.3,0.253]
[1768170036930,0.001,3110.8,3110.3,3.46809187]
[1768170037175,0.001,3110.8,3110.3,3.46808923]
[1768170037468,0.001,3110.8,3110.3,4.41810332]
[1768170037656,0.001,3110.8,3110.4,0.95001409]
[1768170039246,0.001,3110.8,3110.5,6.42983442]
[1768170039871,0.001,3110.8,3110.5,7.37984851]
[1768170040081,0.001,3111.5,3110.6,0.95001409]
[1768170040082,0.9033425,3111.4,3110.6,0.95001409]
[1768170041371,0.9033425,3111.4,3110.7,3.21471051]
[1768170041570,0.9033425,3111.4,3110.8,0.253]
[1768170043374,0.9033425,3111.4,3110.8,3.46760466]
[1768170045481,0.9033425,3111.4,3110.8,0.253]
[1768170045852,0.9033425,3111.4,3110.8,3.46760373]
[1768170047395,0.9033425,3111.4,3110.8,3.46759171]
[1768170047598,0.9033425,3111.4,3110.8,0.253]
[1768170047797,1.31515545,3111.4,3110.8,0.253]
[1768170048511,0.9033425,3111.4,3110.8,3.46758748]
[1768170049382,0.9033425,3111.4,3110.8,3.49973355]
[1768170049796,0.001,3111.5,3110.8,4.44974764]
[1768170050302,0.001,3111.5,3110.8,4.41760157]
[1768170051214,0.9043425,3111.5,3110.8,4.41760157]
[1768170054619,0.9043425,3111.5,3110.8,0.253]
[1768170055117,0.001,3111.2,3110.8,3.46760617]
[1768170057097,0.001,3111.2,3110.8,7.63222743]
[1768170058327,0.001,3111.2,3110.9,0.95001409]
[1768170059593,0.001,3111.2,3111.0,7.37881511]
[1768170060423,0.001,3111.5,3111.0,7.37881511]
[1768170060728,0.00080384,3111.8,3111.3,0.95001409]
[1768170060935,0.90414634,3111.8,3111.4,0.253]
[1768170061704,0.90414634,3111.8,3111.4,3.46693729]
[1768170062522,0.90414634,3111.8,3111.4,6.68092456]
[1768170062721,0.90414634,3111.8,3111.4,3.46693729]
[1768170063757,0.00080384,3111.8,3111.4,3.46693729]
[1768170064708,0.00080384,3111.8,3111.4,4.4517725]
[1768170065412,0.00080384,3111.8,3111.1,0.01284955]
[1768170065413,0.98578714,3111.8,3110.8,0.98483521]
[1768170065610,0.98578714,3111.8,3111.3,3.21403189]
[1768170065810,0.98578714,3111.8,3111.4,0.253]
[1768170066422,0.001,3111.5,3111.4,0.253]
[1768170066617,0.001,3111.5,3111.3,3.21408871]
[1768170066822,0.001,3111.5,3111.4,0.253]
[1768170067232,1.07163309,3111.4,3110.7,3.21465043]
[1768170067541,1.07163309,3111.4,3110.8,0.253]
[1768170068968,0.08664979,3111.4,3110.8,0.253]
[1768170071465,0.08664979,3111.4,3110.8,1.16077155]
[1768170075967,0.08664979,3111.4,3110.9,0.90777155]
[1768170076648,0.08664979,3111.4,3110.8,4.37536388]
[1768170077885,0.001,3111.9,3110.8,4.37536388]
[1768170077886,0.00083779,3112.8,3111.9,0.90777155]
[1768170078051,0.00083779,3112.8,3111.6,6.42756138]
[1768170078052,0.9858045,3112.8,3112.1,0.90777155]
[1768170078457,0.00083779,3112.8,3112.1,0.90777155]
[1768170079977,0.00083779,3112.8,3112.2,6.4263222]
[1768170080287,0.00083779,3112.8,3112.2,7.33409375]
[1768170080681,0.00083779,3112.8,3112.2,6.4263222]
[1768170080682,0.98677191,3112.7,3112.2,6.4263222]
[1768170080879,0.00083779,3112.8,3112.4,0.90777155]
[1768170081077,0.00083779,3112.8,3112.5,0.253]
[1768170081988,0.00083779,3112.8,3112.5,1.16077155]
[1768170082192,0.00083779,3112.8,3112.6,3.21274818]
[1768170082759,0.00083779,3112.8,3112.5,3.46585039]
[1768170087083,0.00083779,3112.8,3112.6,0.90777155]
[1768170087274,0.001,3113.0,3112.6,0.90777155]
[1768170087474,0.001,3113.0,3112.5,3.46585039]
[1768170088611,0.001,3113.0,3112.5,7.58647334]
[1768170090813,0.001,3113.0,3112.5,7.58847334]
[1768170091124,0.001,3112.7,3112.5,7.58847334]
[1768170091421,0.001,3113.3,3112.8,3.21254176]
[1768170092316,0.001,3113.3,3112.7,4.12032469]
[1768170092642,1.02611703,3113.3,3112.5,3.46776197]
[1768170092814,0.98596671,3113.3,3112.5,0.255]
[1768170093002,0.98596671,3113.3,3112.6,3.21266735]
[1768170093203,0.98596671,3113.3,3112.7,3.21263359]
[1768170093731,0.98596671,3113.3,3112.6,3.21274818]
[1768170094030,0.98596671,3113.3,3112.6,6.42549636]
[1768170094604,0.001,3113.3,3112.7,0.92990578]
[1768170095600,0.001,3113.3,3112.8,3.21254176]
[1768170096336,0.001,3113.3,3112.7,4.14254114]
[1768170098337,0.91862323,3113.3,3112.7,3.21263536]
[1768170098502,0.91862323,3113.3,3112.8,0.32126354]
[1768170101343,0.91862323,3113.3,3112.5,0.255]
[1768170101344,0.91862323,3113.3,3112.5,3.46779607]
[1768170101532,0.91862323,3113.3,3112.6,3.21272948]
[1768170101909,0.95777484,3113.2,3112.5,0.002]
[1768170102139,0.91762323,3113.2,3112.5,0.002]
[1768170102311,0.91762323,3113.0,3112.6,0.008]
[1768170102507,0.91762323,3113.0,3112.7,0.006]
[1768170102838,0.91762323,3113.0,3112.8,0.253]
[1768170103006,0.91762323,3113.0,3112.4,0.00083787]
[1768170103205,0.91862323,3113.0,3112.5,0.253]
[1768170103406,0.91762323,3112.9,3112.5,0.253]
[1768170103641,0.91762323,3112.9,3112.6,0.002]
[1768170103945,0.91762323,3112.9,3112.5,0.253]
[1768170104918,0.91762323,3112.9,3112.5,0.02005352]
[1768170105819,0.001,3113.0,3112.5,0.02005352]
[1768170106303,0.91862323,3113.0,3112.5,3.23289187]
[1768170106532,0.91862323,3113.0,3112.5,0.02005352]
[1768170107542,0.001,3113.0,3112.5,0.02005352]
[1768170107964,0.91762323,3112.9,3112.5,0.02005352]
[1768170108462,0.001,3113.3,3112.9,0.01284955]
[1768170108661,0.87352949,3113.5,3113.0,0.253]
[1768170109530,0.91842859,3113.7,3113.0,0.253]
[1768170110330,0.91842859,3113.7,3113.2,0.92990578]
[1768170110331,0.00080536,3113.7,3113.2,0.92990578]
[1768170112365,0.91842819,3114.3,3113.4,0.92990578]
[1768170112560,0.91842819,3114.3,3113.5,3.46481949]
[1768170113949,0.91842819,3114.3,3113.5,6.67663898]
[1768170114158,0.91842819,3114.3,3113.5,3.46481949]
[1768170114467,0.91842819,3114.3,3113.5,4.39472527]
[1768170115647,0.002,3114.0,3113.5,4.39472527]
[1768170116536,0.002,3114.0,3113.6,0.92990578]
[1768170118036,0.002,3114.0,3113.6,4.14157643]
[1768170120172,0.002,3114.0,3113.5,3.46476563]
[1768170120478,0.002,3114.0,3113.5,3.46475766]
[1768170121280,0.002,3114.0,3113.6,3.2117162]
[1768170121861,0.002,3114.0,3113.5,3.4648005]
[1768170122057,0.002,3114.0,3113.5,0.253]
[1768170122262,0.91962323,3114.0,3113.5,0.253]
[1768170122463,0.91962323,3114.0,3113.3,0.00180544]
[1768170122759,0.91762323,3113.8,3113.4,0.253]
[1768170122965,0.91762323,3113.8,3113.3,0.00180544]
[1768170123198,0.91762323,3113.8,3113.4,0.253]
[1768170124295,0.97890978,3113.7,3113.4,0.09244174]
[1768170124514,0.0713312,3113.4,3113.3,0.00180544]
[1768170124795,0.0713312,3113.4,3113.3,0.25480544]
[1768170126366,0.0713312,3113.4,3113.3,0.10301492]
[1768170127897,0.0713312,3113.4,3113.3,0.10401492]
[1768170128113,0.0713312,3113.4,3113.3,0.04524792]
[1768170128466,0.4975274,3113.4,3113.3,0.04524792]
[1768170129298,0.0713312,3113.4,3113.3,0.04524792]
[1768170129704,0.0713312,3113.4,3113.3,0.254]
[1768170136648,0.00080544,3113.7,3113.4,0.98012322]
[1768170137158,0.002,3114.0,3113.7,0.98012322]
[1768170137360,0.002,3114.0,3113.8,1.23312322]
[1768170137663,0.002,3114.0,3113.9,0.253]
[1768170140851,0.002,3114.0,3113.9,4.44453013]
[1768170141218,0.002,3114.0,3113.9,1.23312322]
[1768170141654,0.002,3114.0,3113.9,4.44453013]
[1768170144796,0.002,3114.0,3113.9,1.23312322]
[1768170145784,0.002,3114.0,3113.9,0.253]
[1768170153212,0.00280496,3114.3,3113.9,1.23312322]
[1768170153514,6.47,3114.7,3114.0,0.98012322]
[1768170153722,7.11708049,3114.7,3114.0,0.98012322]
[1768170154682,7.11708049,3114.7,3113.9,3.46521195]
[1768170154683,7.11708049,3114.7,3114.1,4.13752317]
[1768170156083,7.11708049,3114.7,3114.1,0.92632251]
[1768170157831,8.05703071,3114.7,3114.0,3.21127175]
[1768170158619,7.11708049,3114.7,3114.1,0.92632251]
[1768170158794,1.03275659,3114.6,3114.1,0.92632251]
[1768170160106,1.03275659,3114.6,3114.0,3.21129366]
[1768170160312,1.03275659,3114.6,3113.9,4.39148246]
[1768170161909,1.03275659,3114.6,3114.0,3.21127021]
[1768170162613,1.03275659,3114.6,3114.0,4.13759272]
[1768170163216,0.002,3114.4,3114.0,4.13759272]
[1768170164815,0.002,3114.4,3113.9,0.25380504]
[1768170170535,0.94195022,3114.4,3113.9,0.25380504]
[1768170173022,0.94195022,3114.4,3114.0,0.252]
[1768170175540,0.94195022,3114.4,3114.2,0.001]
[1768170175726,0.94195022,3114.4,3114.0,0.252]
[1768170178148,0.002,3114.4,3114.0,0.252]
[1768170180254,0.98008765,3114.3,3113.9,0.00080504]
[1768170180456,0.98008765,3114.3,3114.0,0.253]
[1768170180751,0.93995022,3114.0,3113.3,0.00180552]
[1768170180933,0.04094247,3114.3,3113.3,0.00180552]
[1768170180934,0.08410584,3113.8,3113.7,0.253]
[1768170181946,0.08410584,3113.8,3113.6,0.253]
[1768170189865,0.08410584,3113.8,3113.6,1.2375185]
[1768170190068,0.00080504,3114.3,3113.9,0.9845185]
[1768170191264,0.00080504,3114.3,3114.0,0.9845185]
[1768170191470,0.00080504,3114.3,3114.1,0.253]
[1768170192748,6.472,3114.7,3114.1,1.2375185]
[1768170192749,0.002,3114.7,3114.1,1.2375185]
[1768170193169,0.002,3114.7,3114.1,4.44869166]
[1768170193475,0.002,3114.7,3114.2,0.9845185]
[1768170194873,0.002,3114.7,3114.2,0.99736805]
[1768170195071,0.002,3114.7,3114.4,0.9845185]
[1768170196703,0.00080488,3114.9,3114.4,0.9845185]
[1768170196840,0.00080488,3114.9,3114.3,6.42198888]
[1768170197042,0.00080488,3114.9,3114.3,10.61750182]
[1768170198387,0.00080488,3114.9,3114.3,7.40650738]
[1768170198547,0.00080488,3114.9,3114.4,0.9845185]
[1768170198881,0.00080488,3114.9,3114.4,0.99736805]
[1768170199181,0.002,3114.6,3114.5,4.19530674]
[1768170199383,0.00080488,3114.9,3114.6,0.9845185]
[1768170199384,0.00280488,3114.9,3114.6,0.9845185]
[1768170199675,0.00280488,3114.9,3114.7,1.2365185]
[1768170200285,0.00280488,3114.9,3114.7,0.252]
[1768170200533,0.00280488,3114.9,3114.5,0.9845185]
[1768170200692,0.00280488,3114.9,3114.6,0.252]
[1768170200894,0.00280488,3114.9,3114.3,0.9845185]
[1768170201126,1.50059797,3114.8,3114.4,0.252]
[1768170201415,1.50059797,3114.8,3114.5,0.252]
[1768170201571,0.954849,3114.7,3114.5,0.252]
[1768170201988,0.954849,3114.7,3114.0,4.19576622]
[1768170202204,0.954849,3114.7,3114.1,3.46319633]
[1768170203183,0.954849,3114.7,3114.1,0.252]
[1768170204699,0.954849,3114.7,3114.1,3.46319299]
[1768170206988,0.954849,3114.7,3114.1,0.252]
[1768170207397,0.954849,3114.7,3114.0,3.21125075]
[1768170207574,0.954849,3114.7,3114.2,0.252]
[1768170210332,0.954849,3114.7,3114.2,3.4630914]
[1768170210506,0.95765388,3114.9,3114.2,3.4630914]
[1768170210833,1.3744417,3114.9,3114.2,3.4630914]
[1768170211636,1.3744417,3114.9,3114.5,0.001]
[1768170211850,0.002,3114.6,3114.5,0.001]
[1768170218332,0.002,3114.6,3114.2,0.252]
[1768170219029,0.002,3114.6,3114.2,3.46308436]
[1768170220160,0.002,3114.6,3114.3,0.93108408]
[1768170223465,0.002,3114.6,3114.5,0.001]
[1768170228764,0.96282504,3114.5,3113.8,0.93108408]
[1768170228952,0.54245325,3114.4,3114.0,0.252]
[1768170229549,0.96282504,3114.5,3114.0,0.252]
[1768170231357,0.002,3114.6,3114.0,0.252]
[1768170233082,0.96482504,3114.6,3114.0,0.252]
[1768170233369,0.002,3114.6,3114.0,0.252]
[1768170233670,0.96282504,3114.5,3114.0,0.252]
[1768170233849,0.41755141,3114.4,3114.0,0.252]
[1768170235071,0.41755141,3114.4,3114.3,0.001]
[1768170235283,1.38037645,3114.4,3114.0,0.252]
[1768170235471,0.41755141,3114.4,3114.0,0.252]
[1768170237336,0.41755141,3114.4,3114.1,0.16672899]
[1768170237778,0.96482504,3114.6,3114.1,0.16672899]
[1768170238175,4.17551725,3114.6,3114.1,0.16672899]
[1768170240189,1.00295989,3114.5,3113.3,0.9328896]
[1768170240365,0.96282504,3114.2,3113.4,1.18308408]
[1768170240775,0.96282504,3114.2,3113.5,0.93108408]
[1768170241103,1.70618806,3114.2,3113.5,0.93108408]
[1768170242162,4.91733118,3114.2,3113.5,0.93108408]
[1768170243696,0.96282504,3114.1,3113.4,0.252]
[1768170243998,0.96282504,3114.1,3113.5,0.252]
[1768170246306,0.96282504,3114.1,3113.8,0.001]
[1768170246508,0.49173064,3114.0,3113.5,0.252]
[1768170246712,0.96282504,3114.1,3113.5,0.252]
[1768170248509,0.96282504,3114.1,3113.5,3.4638192]
[1768170248984,0.96282504,3114.1,3113.5,0.252]
[1768170249810,0.74336302,3114.2,3113.5,0.252]
[1768170250307,0.91449605,3114.1,3113.5,0.252]
[1768170251195,1.40146341,3114.1,3113.5,0.252]
[1768170251396,0.48696736,3114.1,3113.5,0.252]
[1768170251704,0.48696736,3114.1,3113.5,1.24916309]
[1768170253012,0.91449605,3114.0,3113.5,0.252]
[1768170253405,0.48696736,3114.1,3113.5,1.24916309]
[1768170254117,0.91449605,3114.0,3113.5,0.252]
[1768170254318,0.48696736,3114.1,3113.5,0.252]
[1768170254508,0.53559881,3114.0,3113.5,0.252]
[1768170255022,0.53559881,3114.0,3113.5,1.24916309]
[1768170255325,0.91449605,3113.9,3113.5,0.253]
[1768170255613,0.1163448,3113.5,3113.3,0.00180552]
[1768170255815,0.1163448,3113.5,3113.4,0.253]
[1768170263029,0.1163448,3113.5,3113.4,1.25016309]
[1768170265617,0.002,3113.8,3113.5,0.99716309]
[1768170266849,0.002,3113.8,3113.6,1.02928025]
[1768170267232,0.002,3113.8,3113.7,4.20877628]
[1768170267536,0.00080512,3114.3,3114.1,0.99716309]
[1768170267829,0.00080512,3114.3,3114.1,1.25016309]
[1768170270706,0.00080512,3114.3,3114.1,4.46136362]
[1768170271119,0.00080512,3114.3,3114.1,1.25016309]
[1768170271320,0.00280512,3114.3,3114.1,1.25016309]
[1768170273534,0.00280512,3114.3,3114.1,0.253]
[1768170276822,0.00280512,3114.3,3114.1,3.4641924]
[1768170277852,0.00280512,3114.3,3114.1,0.253]
[1768170287856,0.00280512,3114.3,3114.1,3.464187]
[1768170288151,0.00280512,3114.3,3114.2,0.03211097]
[1768170288747,0.00280488,3114.9,3114.3,0.94108057]
[1768170288922,0.00280488,3114.9,3114.5,0.94108057]
[1768170289559,0.00280488,3114.9,3114.7,0.94108057]
[1768170289741,0.001,3115.3,3114.7,0.94108057]
[1768170289940,0.001,3115.3,3114.8,4.15155957]
[1768170290254,0.001,3115.3,3114.8,3.210479]
[1768170290454,1.0975064,3115.2,3114.5,0.00080496]
[1768170290756,0.92987963,3115.0,3114.5,0.25280496]
[1768170290971,0.92987963,3115.0,3114.5,0.00080496]
[1768170291169,0.92987963,3114.8,3114.3,0.252]
[1768170292827,0.16762677,3115.2,3114.4,0.94108057]
[1768170293135,0.001,3115.3,3114.6,0.94108057]
[1768170294355,0.001,3115.3,3114.8,0.001]
[1768170294668,0.001,3115.3,3114.9,0.252]
[1768170295957,0.001,3115.3,3114.9,1.19308057]
[1768170296937,0.001,3115.3,3114.9,0.252]
[1768170298261,0.002,3115.6,3115.0,0.94108057]
[1768170298760,0.002,3115.6,3115.1,4.15125038]
[1768170299060,0.002,3115.6,3115.2,0.94108057]
[1768170299576,0.0008044,3115.8,3115.2,0.94108057]
[1768170300756,0.0008044,3115.8,3114.9,0.69245153]
[1768170300757,0.0008044,3115.8,3115.3,7.36100801]
[1768170301089,0.0008044,3115.8,3115.4,0.252]
[1768170301843,0.0008044,3115.8,3115.3,3.20996372]
[1768170301844,0.93068403,3115.8,3115.3,0.252]
[1768170304267,0.94894491,3115.7,3114.9,3.21031825]
[1768170304440,1.52744976,3115.6,3114.9,3.21031825]
[1768170305972,1.52744976,3115.6,3114.8,1.1862707]
[1768170306184,0.94894491,3115.5,3114.8,1.1862707]
[1768170306680,0.002,3115.3,3114.8,1.1862707]
[1768170306979,0.002,3115.3,3114.8,3.46346929]
[1768170308041,0.002,3115.3,3114.8,0.253]
[1768170308792,0.95094491,3115.3,3114.8,0.001]
[1768170309252,0.41608315,3115.2,3114.8,0.001]
[1768170309442,0.9729927,3115.2,3114.8,0.001]
[1768170310383,3.21197506,3115.3,3114.8,0.001]
[1768170310751,0.9729927,3115.2,3114.8,0.001]
[1768170311851,0.9729927,3115.0,3114.5,0.00080504]
[1768170312086,0.54320336,3114.9,3114.5,0.00080504]
[1768170312262,0.9729927,3115.0,3114.5,0.00080504]
[1768170315101,0.9729927,3115.2,3114.5,0.00080504]
[1768170315305,4.18308381,3115.2,3114.5,0.00080504]
[1768170315472,0.9729927,3115.1,3114.5,0.00080504]
[1768170318701,0.9729927,3115.1,3114.8,0.001]
[1768170318900,0.41830838,3115.0,3114.8,0.001]
[1768170323673,8.64406338,3115.3,3114.8,0.001]
[1768170325020,0.9729927,3115.2,3114.8,0.001]
[1768170325178,4.18306282,3115.2,3114.8,0.001]
[1768170325581,0.9729927,3115.2,3114.8,0.001]
[1768170326082,4.18308503,3115.2,3114.8,0.001]
[1768170326282,0.4185085,3115.1,3114.8,0.001]
[1768170326933,0.9729927,3115.0,3114.8,0.001]
[1768170327087,0.002,3115.3,3114.8,0.001]
[1768170327282,0.002,3115.3,3114.8,0.9871262]
[1768170327810,0.002,3115.3,3114.8,0.001]
[1768170328842,0.9749927,3115.3,3114.8,0.001]
[1768170329640,4.18495652,3115.3,3114.8,0.001]
[1768170329843,0.41849565,3115.2,3114.8,0.001]
[1768170330204,0.002,3115.0,3114.8,0.001]
[1768170331734,0.9749927,3115.0,3114.8,0.001]
[1768170337241,0.9749927,3115.0,3114.5,0.00080504]
[1768170337429,0.9749927,3115.0,3114.5,0.25280504]
[1768170341245,4.18526809,3115.0,3114.5,0.25280504]
[1768170341452,0.90086247,3114.9,3114.5,0.25280504]
[1768170341942,0.90086247,3114.9,3114.8,0.001]
[1768170342276,0.9417972,3114.9,3114.0,3.21125328]
[1768170342555,0.90166751,3114.9,3114.1,1.15801993]
[1768170342925,4.1120637,3114.9,3114.1,1.15801993]
[1768170344454,0.90166751,3114.9,3114.1,4.36922041]
[1768170344618,0.90166751,3114.9,3114.2,0.90601993]
[1768170351665,0.00080504,3114.9,3114.3,0.93812987]
[1768170352160,0.00080504,3114.9,3114.3,0.03210994]
[1768170353152,0.00080504,3114.9,3114.3,0.90601993]
[1768170353531,0.00080504,3114.9,3114.6,0.90601993]
[1768170353865,0.00080504,3114.9,3114.6,1.15801993]
[1768170358263,0.00080504,3114.9,3114.5,0.001]
[1768170358468,0.90166751,3114.9,3114.5,0.001]
[1768170358630,4.15221393,3114.9,3114.5,0.001]
[1768170358837,1.31628386,3114.8,3114.5,0.001]
[1768170359544,1.31628386,3114.8,3114.1,0.252]
[1768170360266,0.90086247,3114.7,3114.1,0.252]
[1768170360567,0.41542139,3114.8,3114.1,1.15801993]
[1768170362578,0.41542139,3114.8,3114.1,4.36921845]
[1768170362763,0.90166751,3114.9,3114.1,1.15801993]
[1768170363263,4.11206979,3114.9,3114.1,1.15801993]
[1768170365286,0.00080504,3114.9,3114.4,0.001]
[1768170365487,0.002,3114.6,3114.4,0.001]
[1768170366672,0.002,3114.6,3114.4,0.94656688]
[1768170367078,0.00280504,3114.9,3114.6,0.94556688]
[1768170367257,0.00280504,3114.9,3114.4,0.001]
[1768170367258,0.00280504,3114.9,3114.7,0.252]
[1768170395909,0.90518707,3114.8,3114.7,0.252]
[1768170398416,0.00280504,3114.9,3114.7,0.252]
[1768170417154,0.00280504,3114.9,3114.7,0.19400058]
[1768170417341,0.90799211,3114.9,3114.5,0.252]
[1768170419034,0.00280504,3114.9,3114.5,0.252]
[1768170419231,0.00280504,3114.9,3114.4,0.001]
[1768170422365,0.00280504,3114.9,3114.4,0.97732462]
[1768170424262,0.00280504,3114.9,3114.4,0.001]
[1768170424863,0.91229748,3114.9,3114.4,0.001]
[1768170425056,0.90949244,3114.7,3113.8,4.1790955]
[1768170425359,0.90949244,3114.5,3114.0,0.252]
[1768170426870,0.5764071,3114.6,3114.0,0.252]
[1768170435576,4.72994789,3114.6,3114.0,0.252]
[1768170436177,0.94283974,3114.5,3114.0,0.252]
[1768170438525,0.94283974,3114.5,3114.3,0.001]
[1768170438825,1.41583453,3114.5,3114.3,0.001]
[1768170444539,0.002,3114.6,3114.3,0.001]
[1768170454758,0.9077755,3114.6,3114.3,0.001]
[1768170456951,0.002,3114.6,3114.3,0.001]
[1768170463095,0.9077755,3114.6,3114.3,0.001]
[1768170463281,0.9057755,3114.5,3113.9,0.0008052]
[1768170463492,1.44238508,3114.5,3113.9,0.0008052]
[1768170469792,4.65318397,3114.5,3113.9,0.0008052]
[1768170472362,4.65318397,3114.5,3114.2,0.001]
[1768170473365,1.44238508,3114.5,3114.2,0.001]
[1768170473563,0.53660958,3114.5,3114.2,0.001]
[1768170473884,0.8207661,3114.4,3113.9,0.0008052]
[1768170478990,3.7474033,3114.5,3113.9,0.0008052]
[1768170480014,0.53660958,3114.5,3113.9,0.0008052]
[1768170480204,3.74740942,3114.5,3113.9,0.0008052]
[1768170481105,3.74740942,3114.5,3113.9,0.2528052]
[1768170482546,0.53660958,3114.5,3113.9,0.2528052]
[1768170483151,3.7474218,3114.5,3113.9,0.2528052]
[1768170483326,0.37494218,3114.4,3113.9,0.2528052]
[1768170484048,0.37494218,3114.4,3114.2,0.001]
[1768170484417,0.53660958,3114.5,3114.2,0.001]
[1768170486173,3.74742872,3114.5,3114.2,0.001]
[1768170487737,3.74742872,3114.5,3113.9,1.21392437]
[1768170488869,4.6985202,3114.5,3113.9,0.2528052]
[1768170489053,0.95109148,3114.4,3113.9,0.2528052]
[1768170490354,1.4211435,3114.4,3113.9,0.2528052]
[1768170493468,4.63203819,3114.4,3113.9,0.2528052]
[1768170493655,1.4211435,3114.4,3113.9,0.2528052]
[1768170494388,0.47005202,3114.4,3113.9,0.2528052]
[1768170495481,0.47005202,3114.4,3114.2,0.001]
[1768170495679,0.36808929,3114.3,3113.9,0.2528052]
[1768170495984,0.002,3114.2,3113.9,0.2528052]
[1768170521029,0.002,3114.2,3113.9,0.23625905]
[1768170521995,0.002,3114.2,3113.9,0.21704328]
[1768170538429,0.002,3114.2,3113.3,0.00180552]
[1768170538430,0.94007105,3114.1,3113.3,0.00180552]
[1768170538635,0.94007105,3113.8,3113.3,0.00180552]
[1768170538935,0.002,3114.2,3113.4,0.92471899]
[1768170540225,0.002,3114.2,3113.5,0.03211819]
[1768170540428,0.002,3114.2,3113.6,0.92471899]
[1768170540726,0.002,3114.2,3113.7,0.28511613]
[1768170540929,0.002,3114.2,3113.7,0.253]
[1768170541133,0.002,3114.2,3113.7,0.28511613]
[1768170542641,0.002,3114.2,3113.7,0.253]
[1768170543308,0.002,3113.9,3113.7,0.253]
[1768170551335,0.002,3113.9,3113.3,0.00180552]
[1768170551537,0.002,3113.9,3113.4,0.66844918]
[1768170552445,0.002,3113.9,3113.4,0.253]
[1768170554344,0.002,3113.9,3113.3,0.00180552]
[1768170554345,0.99493729,3113.9,3113.3,0.00180552]
[1768170554512,0.99493729,3113.9,3113.3,0.25480552]
[1768170555308,0.99293729,3113.7,3113.3,0.25480552]
[1768170556116,0.99293729,3113.7,3113.3,0.00180552]
[1768170556334,0.99293729,3113.5,3113.3,0.00180552]
[1768170556528,0.99293729,3113.5,3113.2,0.12302113]
[1768170558252,4.20478018,3113.5,3113.2,0.12302113]
[1768170558418,4.20478018,3113.5,3113.0,0.253]
[1768170558619,0.99293729,3113.4,3112.9,0.253]
[1768170560646,4.20487465,3113.4,3112.9,0.253]
[1768170560845,0.99293729,3113.4,3112.9,0.253]
[1768170561252,4.20487524,3113.4,3112.9,0.253]
[1768170563257,0.99293729,3113.4,3112.9,0.253]
[1768170563460,1.85501108,3113.4,3112.9,0.253]
[1768170566333,1.85501108,3113.4,3112.6,0.253]
[1768170566334,0.99293729,3113.3,3112.6,0.253]
[1768170567440,0.99293729,3113.2,3112.6,0.253]
[1768170568123,0.001,3113.1,3112.6,0.253]
[1768170569327,3.21323218,3113.1,3112.6,0.253]
[1768170569526,3.8901962,3113.1,3112.6,0.253]
[1768170570531,4.88313349,3113.1,3112.4,0.00083787]
[1768170570732,4.88313349,3113.1,3112.5,0.253]
[1768170571260,0.99293729,3113.0,3112.5,0.253]
[1768170573451,4.20617025,3113.1,3112.5,0.253]
[1768170573652,4.94799105,3113.1,3112.5,0.253]
[1768170577797,1.73575809,3113.1,3112.5,0.253]
[1768170578077,0.99393729,3113.1,3112.5,0.253]
[1768170579053,0.96809836,3113.0,3112.5,0.253]